[Event "American Cup Women Champions 2024"]
[Site "Saint Louis"]
[Date "2024.03.12"]
[Round "1.1"]
[White "Krush, Irina"]
[Black "Tang, Zoey"]
[Result "0-1"]
[ECO "A25"]
[WhiteElo "2421"]
[BlackElo "2253"]
[Annotator "TA"]
[PlyCount "110"]
[EventDate "2024.03.11"]
[EventType "k.o."]
[EventCountry "USA"]
[SourceTitle "playchess.com"]
[Source "ChessBase"]
[SourceQuality "1"]
[TimeControl "5400+30"]

{[%evp 18,110,4,10,7,0,0,-7,0,0,12,0,20,0,0,-17,-12,-79,-103,-214,-221,-302,-300,-291,-285,-393,-195,-179,-176,-201,-199,-187,-151,-202,-202,-203,-195,-206,-202,-199,-107,-162,-137,-135,-43,-40,-49,-97,-97,-103,-98,-92,-30,-197,-87,-82,-93,-97,-29,-72,-63,-73,-73,-410,-410,-410,-410,-410,-225,-29963,-29961,-5061,-5061,-29969,-29970,-6577,-29971,-29978,-29979,-29979,-29980,-29981,-29981,-29980,-29981,-29981,-29982,-29982,-29983,-29983,-29983,-29983,-29984,-29984,-29985]} 1. c4 {[%emt 0:00:04]} e5 {[%emt 0:00:02]} 2. g3 {[%emt 0:00:17]} Nc6 {[%emt 0:04:36]} 3. Bg2 {[%emt 0:00:11]} g6 {[%emt 0:01:59]} 4. Nc3 {[%emt 0:00:58]} Bg7 {[%emt 0:00:33]} 5. Rb1 {[%emt 0:04:11]} a5 {[%emt 0:01:23]} 6. e3 {[%emt 0:02:12]} Nge7 {[%emt 0:02:01]} 7. d3 {[%emt 0:03:52]} d6 {[%emt 0:04:34]} 8. Nge2 {[%emt 0:02:30]} Be6 {[%emt 0:03:54]} 9. Nd5 {[%emt 0:00:24]} O-O {[%emt 0:01:43]} 10. O-O {[%emt 0:00:28]} Nb4 {[%emt 0:06:51]} 11. Nxe7+ {[%emt 0:09:02]} Qxe7 {[%emt 0:00:05]} 12. a3 {[%emt 0:00:11]} Nc6 {[%emt 0:01:08][%cal Bb4c6,Bc6e5,Be5d3][%mdl 32] Die Stellung ist ausgeglichen.} 13. Nc3 {[%emt 0:01:38]} Qd7 {[%emt 0:04:17]} 14. Re1 {[%emt 0:04:42]} f5 {[%emt 0:02:55]} 15. Nd5 {[%emt 0:04:37]} a4 {[%emt 0:03:26]} 16. Nc3 {[%emt 0:04:09]} e4 {[%emt 0:04:03]} 17. Nxa4 {[%emt 0:07:56]} (17. dxe4 $11 {bleibt in der Remisbreite.} Bxc4 18. f4) 17... Ne5 $17 {[%emt 0:03:46][%csl LRa4,LRd3] Schwarz hat aktiveres Spiel. Die weißen Türme stehen passiv.} 18. b3 {[%emt 0:07:02]} (18. d4 $17) 18... Nxd3 $19 {[%emt 0:00:56][%cal Ob7b5]} (18... exd3 19. Nb2 $14) 19. Re2 {[%emt 0:00:09] Weiss hat schwache schwarze Felder} b5 {[%emt 0:08:36]} 20. Nb2 {[%emt 0:00:02]} bxc4 {[%emt 0:01:34]} ({Schlechter ist} 20... Rxa3 21. Nxd3 exd3 22. Re1 $11) 21. bxc4 {[%emt 0:01:03]} Rxa3 {[%emt 0:08:54]} (21... Rfb8 $142 22. Qc2 Nxc1 (22... Rxa3 $2 23. Nxd3 Rxb1 24. Qxb1 $19) 23. Qxc1 Rxa3) 22. Nxd3 {[%emt 0:05:27]} Rxd3 {[%emt 0:00:15]} 23. Qe1 {[%emt 0:00:21]} Bxc4 {[%emt 0:04:06]} 24. Bf1 {[%emt 0:01:21]} Rc3 {[%emt 0:07:08]} 25. Reb2 {[%emt 0:00:49]} (25. Bb2 $17 Rb3 26. Bxg7 Rxb1 (26... Qxg7 27. Ra2 $17) 27. Qxb1 Kxg7 28. Rc2) 25... Bxf1 {[%emt 0:00:31]} 26. Qxf1 {[%emt 0:03:47]} Rd3 {[%emt 0:03:42]} 27. Rd2 {[%emt 0:00:39]} Rxd2 {[%emt 0:01:27]} 28. Bxd2 {[%emt 0:00:02]} d5 {[%emt 0:00:26] Verhindert Qc4} ({Vorzuziehen ist} 28... c5 $19 29. Bc3 Bxc3 30. Qc4+ d5 31. Qxc3 Rc8) 29. Qc1 {[%emt 0:05:19]} (29. Qa6 $17 {kämpft weiter.}) 29... f4 {[%emt 0:11:32]} 30. exf4 {[%emt 0:06:20]} d4 {[%emt 0:00:14]} (30... c6 $17 31. h4 d4) 31. Rb7 $15 {[%emt 0:06:47]} Rc8 {[%emt 0:01:19]} 32. Qc4+ {[%emt 0:00:07]} (32. Qc2 $15 {sieht stärker aus.}) 32... Kh8 $17 {[%emt 0:01:12]} 33. Kg2 {[%emt 0:10:21]} h5 {[%emt 0:02:05]} 34. h3 {[%emt 0:02:07] Es drohte Qg4} Qd6 {[%emt 0:02:34]} ({Günstiger ist} 34... Qe8 $17 {...e3 ist eine echte Drohung.} 35. Kh2 Kh7) 35. Ba5 $2 {[%emt 0:00:38]} (35. Ra7 $11 {und Weiss ist OK.}) 35... e3 {[%emt 0:02:47]} (35... Qa3 $19 {ist viel giftiger.} 36. Rxc7 Rxc7 37. Qxc7 Qf3+ 38. Kg1 e3) 36. Rxc7 {[%emt 0:04:26]} Rxc7 {[%emt 0:00:09]} 37. Bxc7 {[%emt 0:00:14][%mdl 4096] Endspiel. KQB-KQB} Qe7 {[%emt 0:00:29]} (37... Qd7 $1 $17 {Und jetzt ...d3 wäre schön.} 38. fxe3 d3 (38... dxe3 $2 39. Ba5 $19)) 38. fxe3 {[%emt 0:01:56] [#]} Qe4+ $1 {[%emt 0:01:34]} 39. Kh2 {[%emt 0:02:10]} Qxe3 {[%emt 0:00:08] Schwarz bringt die Sache ungefährdet zu Ende.} 40. Qa2 {[%emt 0:01:11][%mdl 8192] Es drohte Qf2+} (40. Be5 $17 {war die entscheidende Verteidigung.}) 40... d3 $19 {[%emt 0:00:28] ( -> ...Bd4)} 41. Ba5 {[%emt 0:00:02] [#]} h4 $1 {[%emt 0:00:44][%mdl 512]} 42. Qg2 {[%emt 0:00:50]} Kh7 {[%emt 0:00:51]} (42... Bd4 $142 {...Bc5 wäre nun fies.} 43. Bb4 g5 44. Qa8+ Kh7 45. Qb7+ Bg7) 43. Bd2 $2 {[%emt 0:00:54]} (43. Qg1 $19 Bd4 44. Qg2) 43... hxg3+ {[%emt 0:00:05]} 44. Kh1 {[%emt 0:00:01]} Qf2 {[%emt 0:00:49]} 45. Qxf2 {[%emt 0:00:29]} gxf2 {[%emt 0:00:02] KB-KB} 46. Kg2 {[%emt 0:00:10] [#]} Bd4 $1 {[%emt 0:00:04]} 47. Kf1 {[%emt 0:01:23] Schwarz setzt Matt.} Kg7 {[%emt 0:00:31]} 48. f5 {[%emt 0:00:28]} gxf5 {[%emt 0:00:23]} 49. Kg2 {[%emt 0:00:31]} Kg6 {[%emt 0:00:19]} 50. Bf4 {[%emt 0:00:19]} Kf6 {[%emt 0:01:10]} 51. Kf1 {[%emt 0:00:36]} Ke6 {[%emt 0:01:07]} 52. h4 {[%emt 0:00:21]} Kd5 {[%emt 0:00:10]} 53. h5 {[%emt 0:00:38]} Kc4 {[%emt 0:00:20]} 54. h6 {[%emt 0:00:35]} Kc3 {[%emt 0:00:15]} 55. h7 {[%emt 0:00:31]} d2 {[%emt 0:00:15] Gewichteter Fehlerwert: Weiß=0.52/Schwarz=0.24 (präzise) .  Verlustzug:     	Weiß=2     	---        Fehler:       	Weiß=6     	Schwarz=7     Ungenau:       	Weiß=3     	---        OK:         	Weiß=9     	Schwarz=13    Bester:       	Weiß=3     	Schwarz=4     Stark:        	---       	Schwarz=1} 0-1

[Event "American Cup Women Champions 2024"]
[Site "Saint Louis"]
[Date "2024.03.12"]
[Round "1.1"]
[White "Tokhirjonova, Gulrukhbegim"]
[Black "Yu, Jennifer"]
[Result "1-0"]
[ECO "D26"]
[WhiteElo "2365"]
[BlackElo "2279"]
[Annotator "TA"]
[PlyCount "51"]
[EventDate "2024.03.11"]
[EventType "k.o."]
[EventCountry "USA"]
[SourceTitle "playchess.com"]
[Source "ChessBase"]
[SourceQuality "1"]
[TimeControl "5400+30"]

{[%evp 12,51,21,17,28,21,36,17,22,0,45,0,46,29,54,53,176,59,155,160,154,173,352,360,360,363,354,355,466,443,725,723,712,702,668,601,4982,2567,2566,2253,1539,1504]} 1. d4 {[%emt 0:00:28]} d5 {[%emt 0:01:43]} 2. c4 {[%emt 0:00:14]} dxc4 {[%emt 0:01:43]} 3. Nf3 {[%emt 0:01:14]} Nf6 {[%emt 0:02:14]} 4. e3 {[%emt 0:00:28]} e6 {[%emt 0:03:37]} 5. Bxc4 {[%emt 0:00:38]} a6 {[%emt 0:00:03]} 6. O-O {[%emt 0:02:39]} b5 {[%emt 0:02:00]} 7. Be2 {[%emt 0:00:24]} Bb7 {[%emt 0:00:57]} 8. a4 {[%emt 0:01:11]} b4 {[%emt 0:01:42]} 9. Nbd2 {[%emt 0:01:44]} Nbd7 {[%emt 0:03:14] The position is equal.} 10. Nb3 {[%emt 0:03:59]} Bd5 {[%emt 0:16:41]} 11. Bd2 {[%emt 0:03:58]} c5 {[%emt 0:06:08]} (11... Bd6 $11 {is more appropriate.}) 12. Rc1 {[%emt 0:03:44]} Ne4 {[%emt 0:03:22]} 13. Be1 {[%emt 0:05:55]} Qb6 {[%emt 0:11:11]} ({Black should try} 13... cxd4 $14 14. Nfxd4 (14. Qxd4 Nef6 $16) 14... Nec5) 14. Bd3 {[%emt 0:03:49]} (14. Ne5 $18 {Nxd7 is the strong threat.} Nxe5 15. dxe5) 14... Be7 {[%emt 0:04:35]} (14... Nef6 $14) 15. Bxe4 $16 {[%emt 0:12:59]} Bxe4 {[%emt 0:01:19]} 16. dxc5 {[%emt 0:00:17]} Nxc5 {[%emt 0:05:21]} (16... Qa7 17. Bxb4 Bd5) 17. a5 $18 {[%emt 0:02:27]} Qb5 {[%emt 0:00:08] [#] Hoping for ...Nxb3.} 18. Nxc5 {[%emt 0:05:17]} Bxc5 {[%emt 0:02:18]} 19. Nd4 {[%emt 0:01:26]} Bxd4 {[%emt 0:27:35]} 20. Qxd4 {[%emt 0:00:10] White is clearly winning.} Bd3 {[%emt 0:00:01]} (20... Bxg2 $142 21. Kxg2 O-O 22. Qxb4 (22. Bxb4 Qb7+ 23. Kg1 Rfd8 $18) 22... Qd5+ 23. Kg1 Rac8) 21. Bxb4 {[%emt 0:04:25][%cal Oc1c7] Rc7! would kill now.} ({Less strong is} 21. Qxg7 Rf8 $18) 21... Rd8 {[%emt 0:00:39]} 22. Qxg7 {[%emt 0:01:24][%cal Oc1c7] White threatens Rc7! and mate.} Qxb4 {[%emt 0:00:27]} 23. Qxh8+ {[%emt 0:00:34]} Kd7 {[%emt 0:00:01]} 24. Qf6 {[%emt 0:00:37]} Bxf1 {[%emt 0:00:14]} 25. Qxf7+ {[%emt 0:00:19]} Qe7 {[%emt 0:01:09] [#]} 26. Rc7+ $3 {[%emt 0:00:27][%mdl 512] Weighted Error Value: White=0.14 (very precise) /Black=0.59.  Mistake:       	White=1     	Black=5      Inaccurate:     	White=1     	Black=2      OK:         	White=5     	Black=4      Best:        	White=3     	---} 1-0

[Event "American Cup Women Champions 2024"]
[Site "Saint Louis"]
[Date "2024.03.12"]
[Round "1.1"]
[White "Lee, Alice"]
[Black "Abrahamyan, Tatev"]
[Result "1-0"]
[ECO "E04"]
[WhiteElo "2356"]
[BlackElo "2308"]
[Annotator "TA"]
[PlyCount "125"]
[EventDate "2024.03.11"]
[EventType "k.o."]
[EventCountry "USA"]
[SourceTitle "playchess.com"]
[Source "ChessBase"]
[SourceQuality "1"]
[TimeControl "5400+30"]

{[%evp 37,125,77,83,80,205,56,216,111,110,114,104,107,105,93,101,80,78,46,62,60,42,41,64,47,75,73,77,54,75,60,137,125,143,68,97,88,161,167,175,137,191,193,432,383,568,556,718,479,475,487,522,525,522,468,555,516,591,591,506,297,290,283,427,429,427,462,402,376,424,225,1048,1035,1004,1005,985,962,990,921,1402,1100,1217,902,1266,1128,918,741,622,608,5583,3845]} 1. d4 {[%emt 0:00:03]} Nf6 {[%emt 0:00:05]} 2. c4 {[%emt 0:00:06]} e6 {[%emt 0:00:04]} 3. Nf3 {[%emt 0:00:05]} d5 {[%emt 0:00:05]} 4. g3 {[%emt 0:00:06]} dxc4 {[%emt 0:00:28]} 5. Bg2 {[%emt 0:00:08]} a6 {[%emt 0:00:44]} 6. O-O {[%emt 0:00:31]} Nc6 {[%emt 0:01:15]} 7. Be3 {[%emt 0:00:12] E04: Katalanisch.} Be7 {[%emt 0:08:11]} 8. Nbd2 {[%emt 0:02:27]} Nd5 $146 {[%emt 0:15:50]} ({Predecessor:} 8... Na5 9. Ne5 Nd5 10. Ndxc4 Nxc4 11. Nxc4 Nxe3 12. Nxe3 O-O 13. Qc2 Qxd4 14. Qxc7 Bf6 {½-½ Gauri,S (2376)-Aagaard,J (2474) Charlotte CCCSA Summer GM-A 2022 (1)}) 9. Nxc4 {[%emt 0:00:19]} Nxe3 {[%emt 0:00:11]} 10. fxe3 {[%emt 0:03:16]} O-O {[%emt 0:07:58]} 11. Rc1 {[%emt 0:05:45]} Bf6 {[%emt 0:15:08]} 12. Qb3 {[%emt 0:09:59]} Qe7 {[%emt 0:06:25]} 13. Nfd2 {[%emt 0:09:03]} e5 {[%emt 0:14:48]} 14. Bxc6 {[%emt 0:12:27]} bxc6 {[%emt 0:00:09]} 15. Nxe5 {[%emt 0:03:20]} Bxe5 {[%emt 0:03:05]} 16. dxe5 {[%emt 0:00:08]} Bh3 {[%emt 0:08:19]} 17. Rf4 {[%emt 0:02:44]} Qxe5 {[%emt 0:01:26]} 18. Nf3 {[%emt 0:03:03]} Qe7 {[%emt 0:02:48]} 19. Kf2 {[%emt 0:04:12]} Rab8 {[%emt 0:02:51]} 20. Qc3 {[%emt 0:04:49]} Rfe8 {[%emt 0:01:46] [#]} (20... Bd7 $16) 21. b3 {[%emt 0:01:14]} (21. g4 $1 $18) 21... Rb6 $2 {[%emt 0:05:22] [#]} ({Günstiger ist} 21... Bd7 $14) 22. Qc5 {[%emt 0:01:25]} (22. g4 $1 $18) 22... Bd7 $16 {[%emt 0:01:35]} 23. Qxe7 {[%emt 0:08:27]} Rxe7 {[%emt 0:00:01]} 24. Rd4 {[%emt 0:00:34]} h6 {[%emt 0:01:08]} 25. b4 {[%emt 0:02:56]} Be6 {[%emt 0:01:40]} 26. a4 {[%emt 0:01:13]} Bd5 {[%emt 0:00:17]} 27. Nd2 {[%emt 0:01:37]} f5 $1 {[%emt 0:00:09]} 28. g4 {[%emt 0:09:03]} fxg4 {[%emt 0:00:24]} 29. e4 {[%emt 0:00:42]} Bf7 {[%emt 0:00:39]} 30. a5 {[%emt 0:00:37]} Rb8 {[%emt 0:00:09]} 31. Rxc6 {[%emt 0:00:08]} Ra8 {[%emt 0:00:02]} 32. Ke3 {[%emt 0:06:05]} Be8 {[%emt 0:01:30]} 33. Rc5 {[%emt 0:00:08]} Bb5 {[%emt 0:00:20]} (33... Rb8 $14) 34. Nb1 $16 {[%emt 0:00:43]} Be8 {[%emt 0:01:45]} 35. Rcd5 {[%emt 0:04:23]} (35. Nc3 $16 {Zielt auf Nd5 ab.} Bf7 36. Nd5 Bxd5 37. Rdxd5) 35... Rb8 {[%emt 0:00:44]} 36. Nc3 {[%emt 0:02:00]} Rb7 {[%emt 0:00:27]} (36... Kh7 $16 {war einen Versuch wert.}) 37. Rd8 $18 {[%emt 0:00:27]} Kh7 {[%emt 0:00:37]} 38. Nd5 {[%emt 0:01:18]} Re6 {[%emt 0:00:19]} 39. Rc8 {[%emt 0:00:21]} Bc6 $2 {[%emt 0:00:40]} (39... Ba4 40. Rxc7 (40. Nxc7 $2 {ist das falsche Schlagen.} Rc6 $19) 40... Rxc7 41. Nxc7 Rc6) 40. Nxc7 $18 {[%emt 0:00:14]} (40. Rxc7 $2 {zu gefräßig.} Bxd5 41. Rc5 Bc6 $19) 40... Rf6 {[%emt 0:00:22]} (40... Rxe4+ $142 41. Rxe4 Bxe4 42. Nxa6 (42. Kxe4 Rxb4+ 43. Kd3 Ra4 $18) 42... Re7) 41. Nxa6 $18 {[%emt 0:00:18]} Bxe4 {[%emt 0:00:20]} 42. Rxe4 {[%emt 0:00:52]} Rxa6 {[%emt 0:00:02]} 43. Rxg4 {[%emt 0:00:56]} Re6+ {[%emt 0:00:18]} 44. Kd3 {[%emt 0:00:07]} Rbe7 {[%emt 0:00:22]} 45. e4 {[%emt 0:01:56]} h5 {[%emt 0:00:40]} 46. Rf4 {[%emt 0:00:27]} g5 {[%emt 0:00:20]} 47. Rf5 {[%emt 0:02:00]} Rxe4 {[%emt 0:00:04]} 48. Rxg5 {[%emt 0:00:57]} Rxb4 {[%emt 0:00:42]} 49. Rxh5+ {[%emt 0:00:09]} Kg6 {[%emt 0:00:04]} (49... Kg7 $142 50. Rcc5 Ra4 51. Rcg5+ Kf7) 50. Rhc5 $18 {[%emt 0:00:20]} Ra4 {[%emt 0:01:11]} 51. R8c6+ {[%emt 0:00:11]} Kf7 {[%emt 0:00:14]} 52. Rh5 {[%emt 0:01:21]} Rd7+ {[%emt 0:01:29]} 53. Kc3 {[%emt 0:00:16]} (53. Kc2 $142) 53... Rd1 $2 {[%emt 0:00:52]} (53... Kg7 54. h4 Ra1) 54. Rh7+ $18 {[%emt 0:00:11]} Kg8 {[%emt 0:00:02]} 55. Rb7 {[%emt 0:00:34]} Rd8 {[%emt 0:00:34]} 56. a6 {[%emt 0:00:35]} Ra8 {[%emt 0:00:10]} 57. Rbb6 {[%emt 0:00:05]} Kf7 {[%emt 0:00:14]} 58. Kb3 {[%emt 0:00:19]} Ra1 {[%emt 0:00:10]} 59. Kc4 {[%emt 0:00:23]} Ra5 {[%emt 0:00:34]} 60. Kb4 {[%emt 0:00:30]} Ra1 {[%emt 0:00:04]} 61. Kc5 {[%emt 0:00:09]} Ke7 {[%emt 0:00:26]} 62. Rh6 {[%emt 0:01:18]} Rc1+ {[%emt 0:01:00]} 63. Kb5 {[%emt 0:00:30]} 1-0

[Event "American Cup Women Champions 2024"]
[Site "Saint Louis"]
[Date "2024.03.12"]
[Round "1.1"]
[White "Zatonskih, Anna"]
[Black "Paikidze, Nazi"]
[Result "0-1"]
[ECO "E80"]
[WhiteElo "2348"]
[BlackElo "2319"]
[Annotator "TA"]
[PlyCount "116"]
[EventDate "2024.03.11"]
[EventType "k.o."]
[EventCountry "USA"]
[SourceTitle "playchess.com"]
[Source "ChessBase"]
[SourceQuality "1"]
[TimeControl "5400+30"]

{[%evp 13,116,60,79,61,54,60,64,59,59,49,66,34,65,41,82,80,81,80,83,83,98,101,155,143,171,166,177,173,187,183,200,178,199,204,183,183,204,192,254,250,245,175,208,222,207,212,160,67,85,60,66,0,0,0,0,-130,-120,-330,-98,-258,0,-293,-285,-284,-150,-284,-168,-624,-23,-768,-697,-772,-795,-735,-48,-284,-264,-982,-852,-1516,-1564,-1483,-1394,-1579,-1597,-1705,-1547,-1938,-2038,-1818,-2359,-2183,-2265,-2831,-3087,-3013,-2790,-2221,-1832,-3723,-3108,-29984,-29985,-29985,-29986]} 1. d4 {[%emt 0:00:03]} Nf6 {[%emt 0:00:05]} 2. c4 {[%emt 0:00:05]} d6 {[%emt 0:00:05]} 3. Nc3 {[%emt 0:03:45]} Nbd7 {[%emt 0:00:18]} 4. e4 {[%emt 0:09:25]} e5 {[%emt 0:00:17]} 5. Be3 {[%emt 0:10:11]} g6 {[%emt 0:02:02]} 6. f3 {[%emt 0:17:08]} Bg7 {[%emt 0:04:40]} 7. d5 {[%emt 0:00:57]} Nh5 {[%emt 0:11:45]} 8. Nge2 {[%emt 0:06:58]} f5 {[%emt 0:07:17]} 9. Qd2 {[%emt 0:05:57]} f4 {[%emt 0:04:14]} 10. Bf2 {[%emt 0:00:06] Weiß steht etwas besser.} O-O {[%emt 0:00:28]} 11. Nc1 {[%emt 0:00:30]} a5 {[%emt 0:01:58]} 12. Be2 {[%emt 0:04:45]} Nc5 {[%emt 0:05:43]} 13. g4 {[%emt 0:03:27][%cal Bg2g4,Bg4g5][%mdl 32]} Nf6 {[%emt 0:01:07]} 14. h4 {[%emt 0:03:24]} h5 {[%emt 0:01:35]} 15. g5 {[%emt 0:00:36]} Nfd7 {[%emt 0:01:14]} 16. b3 {[%emt 0:00:38]} Qe7 {[%emt 0:09:18]} 17. Rb1 {[%emt 0:02:18]} c6 {[%emt 0:05:15]} (17... Rd8 $142) 18. O-O $1 $16 {[%emt 0:02:20]} Rf7 {[%emt 0:12:49]} 19. Rd1 $1 {[%emt 0:02:04]} Bf8 {[%emt 0:01:13]} 20. a3 {[%emt 0:00:06][%cal Ba2a3,Ba3b4][%mdl 32]} cxd5 {[%emt 0:03:07]} 21. cxd5 {[%emt 0:07:08]} Qd8 {[%emt 0:02:54]} 22. b4 {[%emt 0:01:55]} axb4 {[%emt 0:00:16]} 23. axb4 {[%emt 0:00:04]} Na6 {[%emt 0:00:53]} 24. Nb5 {[%emt 0:01:58]} Be7 {[%emt 0:01:30]} 25. Nb3 {[%emt 0:00:48]} Nf8 {[%emt 0:00:43]} (25... Nc7 $142 26. Ra1 Rxa1) 26. Rdc1 {[%emt 0:02:08]} Nh7 {[%emt 0:01:03]} 27. Na7 {[%emt 0:04:41] Schwarz muss nun Nxc8 beachten.} Bxg5 {[%emt 0:04:35]} 28. Nxc8 {[%emt 0:01:48]} (28. hxg5 Bg4 $16) 28... Bxh4 {[%emt 0:01:26]} 29. Bxh4 {[%emt 0:01:54]} Qxh4 {[%emt 0:00:02]} 30. Bxa6 {[%emt 0:04:05]} ({Vorzuziehen ist} 30. Nxd6 $16 Qg3+ 31. Kf1) 30... Rxa6 $14 {[%emt 0:02:25]} 31. Qg2 {[%emt 0:00:50][%cal Ob4b5]} Qd8 {[%emt 0:00:58]} 32. Rc3 {[%emt 0:00:48]} (32. Qxg6+ $2 Rg7 $19) (32. Rb2 $14) 32... g5 $11 {[%emt 0:00:48]} 33. Rbc1 {[%emt 0:00:13]} g4 $1 {[%emt 0:00:25]} 34. Nd2 {[%emt 0:01:33]} (34. Qh2 $11 {bleibt in der Remisbreite.}) 34... Ra2 {[%emt 0:01:07] Droht stark ...Rg7.} 35. fxg4 $2 {[%emt 0:01:11]} (35. Qh2 $17 {war angesagt.}) 35... Rg7 $2 {[%emt 0:01:42]} (35... f3 $1 $19 {[%cal Rf3g2] ist viel giftiger.} 36. Qh2 (36. Nxf3 $2 Rxg2+ 37. Kxg2 hxg4 $19) (36. Rxf3 $2 Rxd2 37. Qxd2 Rxf3 $19) 36... f2+ (36... hxg4 37. R1c2 $11) 37. Kf1 Rxd2 38. Qxh5 Nf8) 36. Kf1 {[%emt 0:00:34]} (36. Qh2 $17) 36... Nf6 $2 {[%emt 0:02:34]} (36... Rxg4 37. Qf2 Kh8 38. Qh2 $15) (36... hxg4 $19 37. R3c2 Rxc2 38. Rxc2 Nf6) 37. Ke1 $2 {[%emt 0:01:08][%mdl 8192]} (37. g5 $11 {und Weiss ist OK.} Ng4 38. Ke2) 37... hxg4 $19 {[%emt 0:02:50] ...f3 ist eine echte Drohung.} (37... Nxg4 38. Qh3 h4 39. Nf3 $16) 38. Qg1 {[%emt 0:00:20]} Ne8 {[%emt 0:02:47]} ({Günstiger ist} 38... Rxd2 $1 $19 39. Na7 Rb2 (39... Nxe4 40. Rc8 $11)) 39. Kd1 {[%emt 0:00:32] [#]} (39. R3c2 $17 {war nötig.} Ra3 40. Rc3 Qh4+ 41. Ke2) 39... Qh4 {[%emt 0:01:43]} (39... g3 $142 $1 {Droht ...Qd7 und aus.} 40. R3c2 Ra3) 40. Nb6 {[%emt 0:00:44]} (40. R1c2 Ra4 (40... Ra1+ 41. Rc1 $17) 41. Nb6 Ra1+ (41... Rxb4 42. Rc8 $11) 42. Rc1) 40... Nf6 $2 {[%emt 0:00:40]} ({Besser ist} 40... g3 $19 41. Nf3 Qh7 (41... Qg4 $2 42. Nc4 $19)) 41. Nbc4 $2 {[%emt 0:00:41][%mdl 8192]} (41. Rc8+ $11 Kh7 42. R8c2) 41... g3 {[%emt 0:00:46]} 42. Nf3 {[%emt 0:00:58] Es drohte Qh2} Qh5 {[%emt 0:01:12]} 43. Ncd2 {[%emt 0:00:37] [#]} Ng4 $2 {[%emt 0:01:01]} (43... Rxd2+ $1 $19 44. Kxd2 Nxe4+ 45. Ke1 Nxc3 46. Rxc3 e4) 44. Rc8+ $2 {[%emt 0:00:29]} (44. R1c2 $15 Ra1+ 45. Rc1 Nf2+ 46. Kc2 Rxc1+ 47. Kxc1) 44... Kh7 {[%emt 0:00:09]} 45. R1c7 $2 {[%emt 0:00:14]} (45. Ke2 Nh2 46. R1c2 Nxf3 47. Nxf3 Rxc2+ 48. Rxc2) 45... Nf2+ {[%emt 0:00:53]} 46. Ke2 {[%emt 0:00:05] [#]} Rxd2+ $1 {[%emt 0:01:08][%mdl 512]} 47. Kxd2 {[%emt 0:00:02]} Qxf3 {[%emt 0:00:09]} 48. Kc2 {[%emt 0:00:35]} Qxe4+ {[%emt 0:00:22]} 49. Kb3 {[%emt 0:01:15]} Qxd5+ {[%emt 0:00:08]} 50. Ka3 {[%emt 0:00:01]} Qh1 {[%emt 0:02:36]} 51. Rc1 {[%emt 0:00:37]} Qxg1 {[%emt 0:00:14]} 52. Rxg1 {[%emt 0:00:02][%mdl 4096] Endspiel. KRR-KRN} f3 {[%emt 0:00:34]} 53. Rc2 {[%emt 0:00:16]} e4 {[%emt 0:00:21]} 54. Kb3 {[%emt 0:00:11]} d5 {[%emt 0:01:04]} 55. Rd2 {[%emt 0:00:20]} Rg5 {[%emt 0:00:22] Und jetzt ...Nd3 wäre schön.} 56. Rc2 {[%emt 0:00:54]} Kg6 {[%emt 0:00:18] Und ...Nd3 würde nun gewinnen.} 57. Kc3 {[%emt 0:00:06]} Nh3 {[%emt 0:00:16]} 58. Rh1 {[%emt 0:00:21]} g2 {[%emt 0:00:15] Gewichteter Fehlerwert: Weiß=1.26/Schwarz=0.65.  Verlustzug:     	Weiß=3     	---        Gewinn verpasst:   	---       	Schwarz=3     Fehler:       	Weiß=7     	Schwarz=4     Ungenau:       	Weiß=2     	Schwarz=2     OK:         	Weiß=9     	Schwarz=11    Bester:       	---       	Schwarz=2     Stark:        	Weiß=1     	Schwarz=1} 0-1